bitfinex-derivatives/quotes_ETHF0:USTF0_20250910
["timestamp","ask_amount","ask_price","bid_price","bid_amount"]
[1757469733894,0.72596785,4315.4,4314.0,0.12457741]
[1757469734085,3.99911163,4315.1,4314.0,0.12457741]
[1757469734290,0.73420784,4315.0,4314.0,0.00347741]
[1757469734602,0.49420784,4314.9,4314.0,0.00347741]
[1757469734792,0.49420784,4314.8,4314.0,0.12457741]
[1757469734989,0.24,4315.0,4314.0,0.12457741]
[1757469734990,0.49420784,4314.7,4314.0,0.12457741]
[1757469735292,0.49420784,4314.6,4314.0,0.12457741]
[1757469735597,0.49420784,4314.5,4314.1,0.3067]
[1757469735799,0.24,4314.4,4314.1,0.3067]
[1757469736291,1.24646729,4315.5,4314.2,0.4185]
[1757469736292,0.24,4314.3,4314.2,0.4185]
[1757469736500,0.24,4314.3,4314.2,0.7252]
[1757469737091,4.03946191,4315.7,4314.3,0.3025]
[1757469737294,0.48982916,4315.6,4314.3,0.5008]
[1757469737489,0.48982916,4315.6,4314.0,0.12457741]
[1757469737490,0.48982916,4315.5,4314.0,0.12457741]
[1757469737695,0.48982916,4315.4,4314.0,0.62537741]
[1757469737896,0.48982916,4315.3,4314.0,0.32287741]
[1757469738097,0.48982916,4315.2,4314.1,0.3025]
[1757469738300,0.48982916,4315.1,4314.1,0.3025]
[1757469738596,0.0403508,4315.7,4314.1,0.3025]
[1757469738597,0.24,4315.0,4314.1,0.3025]
[1757469738789,0.0403508,4315.7,4314.9,0.3025]
[1757469738992,0.48980032,4315.6,4315.5,0.1242]
[1757469739198,0.48980032,4315.6,4315.5,0.8256]
[1757469739199,0.24,4315.6,4315.5,0.8256]
[1757469739601,33.407,4315.8,4315.5,0.5231]
[1757469739897,33.407,4315.8,4315.7,0.7014]
[1757469740093,33.647,4315.8,4315.7,0.7014]
[1757469742999,33.407,4315.8,4315.7,0.7014]
[1757469743294,33.646,4315.8,4315.7,0.7014]
[1757469744094,33.646,4315.8,4315.7,1.02093635]
[1757469745305,34.13757309,4315.8,4315.7,1.02093635]
[1757469746604,34.13757309,4315.8,4315.7,0.7014]
[1757469746895,33.89857309,4315.8,4315.7,0.7014]
[1757469747103,34.13757309,4315.8,4315.7,0.7014]
[1757469748806,34.13757309,4315.8,4315.7,0.3025]
[1757469749703,34.13757309,4315.8,4315.7,0.5008]
[1757469750404,34.13757309,4315.8,4315.2,0.3025]
[1757469750705,0.49157309,4315.7,4315.0,0.1242]
[1757469750903,0.73057309,4315.6,4315.2,0.3025]
[1757469751109,0.49157309,4315.5,4315.0,0.1242]
[1757469751303,0.73057309,4315.4,4315.2,0.3025]
[1757469751608,0.49157309,4315.3,4315.2,0.3025]
[1757469752104,0.49157309,4315.3,4315.1,0.3025]
[1757469752300,0.73057309,4315.2,4315.1,0.3025]
[1757469752803,0.73057309,4315.2,4315.1,0.7014]
[1757469753403,0.73057309,4315.2,4315.1,1.02116668]
[1757469755802,0.239,4315.2,4315.1,1.02116668]
[1757469756102,33.407,4315.8,4315.1,0.71866668]
[1757469756307,0.239,4315.7,4315.6,0.7014]
[1757469756603,0.239,4315.7,4315.6,1.34403387]
[1757469757494,0.239,4315.7,4315.6,1.02399828]
[1757469757698,0.239,4315.7,4315.6,1.34403512]
[1757469758303,0.239,4315.7,4315.6,1.02399828]
[1757469758901,0.239,4315.7,4315.6,0.62509828]
[1757469759108,0.73051934,4315.7,4315.6,0.32259828]
[1757469760394,4.73051934,4315.7,4315.0,0.1242]
[1757469760599,0.49151934,4315.6,4315.2,0.3025]
[1757469760801,0.238,4315.5,4315.3,0.32266103]
[1757469761004,0.49151934,4315.4,4315.1,0.3025]
[1757469761307,0.238,4315.3,4315.2,1.14356946]
[1757469762007,0.238,4315.3,4315.2,1.34416946]
[1757469763303,0.238,4315.3,4315.2,1.14356946]
[1757469764512,0.238,4315.3,4315.2,1.34416946]
[1757469764906,33.407,4315.8,4315.7,0.7014]
[1757469765108,34.13707383,4315.8,4315.7,1.34421027]
[1757469766713,34.13707383,4315.8,4315.7,0.82346148]
[1757469767112,34.13707383,4315.8,4315.7,1.1441248]
[1757469767704,34.13707383,4315.8,4315.7,0.32266148]
[1757469767905,38.13707383,4315.8,4315.7,0.32266148]
[1757469768307,34.13707383,4315.8,4315.7,0.63496148]
[1757469768706,38.13707383,4315.8,4315.7,0.32266148]
[1757469769313,38.13707383,4315.8,4315.7,0.63496148]
[1757469769616,38.13707383,4315.8,4315.7,0.63726879]
[1757469771011,38.13707383,4315.8,4315.7,0.83136879]
[1757469771212,34.13707383,4315.8,4315.7,0.83136879]
[1757469772917,34.13707383,4315.8,4315.7,0.32496879]
[1757469773214,34.13819625,4315.8,4315.7,0.32496879]
[1757469773617,35.38466354,4315.8,4315.7,0.32496879]
[1757469774617,35.38466354,4315.8,4315.7,0.31721484]
[1757469775816,34.13819625,4315.8,4315.7,0.31721484]
[1757469777214,34.13819625,4315.8,4315.7,0.82361484]
[1757469777912,34.13819625,4315.8,4315.7,0.62951484]
[1757469778621,33.90019625,4315.8,4315.7,0.82361484]
[1757469778822,34.13819625,4315.8,4315.7,1.03781484]
[1757469779023,34.13819625,4315.8,4315.7,1.35576294]
[1757469783422,34.13819625,4315.8,4315.7,1.35554752]
[1757469785626,33.90019625,4315.8,4315.7,1.35554752]
[1757469785824,34.13719625,4315.8,4315.7,1.35554752]
[1757469787016,33.644,4315.8,4315.7,1.53467268]
[1757469787220,33.644,4315.8,4315.7,1.534483]
[1757469787623,10.17248562,4315.8,4315.7,5.534483]
[1757469787819,0.237,4315.8,4315.7,5.534483]
[1757469788226,0.237,4315.8,4315.7,5.766193]
[1757469788419,0.237,4315.8,4315.7,5.534483]
[1757469793622,0.00347741,4316.2,4316.1,0.7206]
[1757469793828,0.24047741,4316.2,4316.1,1.534483]
[1757469794327,0.00347741,4316.2,4316.1,1.534483]
[1757469795732,0.00347741,4316.2,4316.1,5.534483]
[1757469795930,0.1995,4317.1,4317.0,0.1247]
[1757469796135,34.0766,4317.4,4317.3,0.4083]
[1757469796323,35.82954309,4317.4,4317.3,1.04223209]
[1757469796633,35.34276793,4317.4,4317.3,1.03781484]
[1757469796932,0.6886,4317.4,4317.3,1.03781484]
[1757469797228,0.7189,4317.9,4317.8,0.7168]
[1757469797434,0.8423,4317.5,4316.9,0.00347741]
[1757469797623,0.7189,4317.1,4317.0,1.35198334]
[1757469798026,1.74806793,4317.1,4317.0,0.63518334]
[1757469798228,1.74806793,4317.1,4317.0,0.31900779]
[1757469798823,0.7189,4317.1,4317.0,0.31900779]
[1757469800030,0.5352,4317.0,4316.9,0.00347741]
[1757469800225,1.87146793,4317.0,4316.9,0.00347741]
[1757469801633,2.35753302,4317.0,4316.9,0.00347741]
[1757469802527,1.32836509,4317.0,4316.9,0.00347741]
[1757469802733,2.35753302,4317.0,4316.9,0.00347741]
[1757469804443,1.32836509,4317.0,4316.9,0.00347741]
[1757469805230,1.32836509,4317.0,4315.5,0.1247]
[1757469805231,0.7189,4315.6,4315.5,0.7168]
[1757469805428,0.7189,4315.6,4315.5,1.35314745]
[1757469805634,0.7189,4315.6,4315.5,0.31898798]
[1757469805932,0.237,4315.7,4314.7,0.7168]
[1757469805933,0.7189,4314.8,4314.7,0.7168]
[1757469806138,0.9559,4314.8,4314.7,1.35352272]
[1757469806531,0.6488,4314.8,4314.7,1.35352272]
[1757469806837,0.6488,4314.8,4314.7,1.52972811]
[1757469807231,0.9559,4314.8,4314.7,1.52972811]
[1757469807432,0.2073,4314.9,4314.8,0.7168]
[1757469807639,0.237,4314.9,4314.8,1.52987817]
[1757469808337,0.4443,4314.9,4314.8,1.52987817]
[1757469808535,0.9559,4314.9,4314.8,1.21377817]
[1757469808836,0.9559,4314.9,4314.8,0.81307817]
[1757469809141,0.9559,4314.9,4314.8,0.63687278]
[1757469811639,0.7189,4314.9,4314.8,1.35367278]
[1757469811842,0.237,4314.9,4314.8,1.35367278]
[1757469812644,0.4443,4314.9,4314.8,1.35367278]
[1757469813540,0.9559,4314.9,4314.8,1.03757278]
[1757469813845,0.9559,4314.9,4314.8,1.35367278]
[1757469814045,0.5144,4315.3,4315.2,0.4007]
[1757469814245,0.7514,4315.3,4315.2,1.35367278]
[1757469814439,0.9559,4315.3,4315.2,1.35367278]
[1757469815039,0.3071,4315.8,4315.3,0.3161]
[1757469815245,0.7189,4315.8,4315.7,0.5133]
[1757469815445,0.9559,4315.8,4315.7,0.51644463]
[1757469815644,0.9559,4315.8,4315.7,0.31924463]
[1757469816438,0.7189,4315.8,4315.7,0.51644463]
[1757469816645,0.9559,4315.8,4315.7,0.51644463]
[1757469817044,0.9559,4315.8,4315.7,0.31924463]
[1757469818750,4.9559,4315.8,4315.7,0.31924463]
[1757469819245,0.9559,4315.8,4315.7,0.31924463]
[1757469820150,0.9559,4315.8,4315.1,0.3161]
[1757469820352,0.7189,4315.3,4315.2,1.03637887]
[1757469820552,0.9559,4315.3,4315.2,1.35247887]
[1757469821950,0.7189,4315.3,4315.2,1.35247887]
[1757469822248,0.9559,4315.3,4315.2,1.35247887]
[1757469823847,0.9559,4315.3,4315.2,0.63567887]
[1757469824549,0.9559,4315.3,4315.2,1.14897887]
[1757469824753,0.9559,4315.3,4315.2,1.35247887]
[1757469825952,33.379,4315.9,4315.2,1.35247887]
[1757469826151,0.9559,4315.8,4315.7,0.4007]
[1757469826343,0.9559,4315.8,4315.7,1.03509888]
[1757469826747,0.9559,4315.8,4315.7,0.7168]
[1757469827250,0.9559,4315.8,4315.1,0.3102]
[1757469827550,0.1991,4315.4,4315.3,0.4075]
[1757469827751,0.7371,4315.4,4315.3,1.0361182]
[1757469828148,0.9401,4315.4,4315.3,0.63625459]
[1757469828452,0.9401,4315.4,4315.3,0.8286875]
[1757469829857,0.9401,4315.4,4315.3,0.3185875]
[1757469830454,0.9401,4315.4,4315.3,0.8286875]
[1757469831856,0.7031,4315.4,4315.3,0.8286875]
[1757469832056,0.9401,4315.4,4315.3,1.13943231]
[1757469832256,0.9401,4315.4,4315.3,1.03683231]
[1757469832458,0.9401,4315.4,4315.3,0.82923231]
[1757469832858,0.9401,4315.4,4315.3,1.13943231]
[1757469834265,0.9401,4315.4,4315.3,0.62933231]
[1757469834865,0.9401,4315.4,4315.3,0.82923231]
[1757469835266,1.42913012,4315.4,4315.3,0.82923231]
[1757469835562,1.42913012,4315.4,4315.3,1.14019513]
[1757469836566,1.42913012,4315.4,4315.3,0.82105795]
[1757469836764,1.42913012,4315.4,4315.3,0.99130918]
[1757469837660,0.92513012,4315.4,4315.3,1.19890918]
[1757469838268,1.22613012,4315.4,4315.3,1.19890918]
[1757469838961,0.72603012,4315.4,4315.3,1.19890918]
[1757469840770,0.72503012,4315.4,4315.3,1.19890918]
[1757469841071,1.22513012,4315.4,4315.3,1.19890918]
[1757469841960,1.42813012,4315.4,4315.3,0.48125072]
[1757469842466,1.42813012,4315.4,4315.3,0.31098632]
[1757469842665,1.42815625,4315.4,4315.3,0.48126635]
[1757469842866,1.42815625,4315.4,4315.3,0.68116635]
[1757469843168,1.42815625,4315.4,4315.3,0.31098632]
[1757469843566,1.42815625,4315.4,4315.3,1.02868632]
[1757469843771,1.42815625,4315.4,4315.3,1.19894633]
[1757469844273,1.42815625,4315.4,4315.3,1.51806039]
[1757469845870,1.19215625,4315.4,4315.3,1.51804759]
[1757469846072,1.42815625,4315.4,4315.3,0.80034759]
[1757469846671,1.42815625,4315.4,4315.3,0.63010038]
[1757469846871,1.42815625,4315.4,4315.3,0.80039472]
[1757469847072,2.64676762,4315.4,4315.3,0.80040702]
[1757469847667,2.64676762,4315.4,4315.3,0.63010038]
[1757469847973,0.7031,4314.3,4314.2,0.1999]
[1757469848172,1.42815625,4314.3,4314.2,0.1999]
[1757469848373,0.9391,4314.3,4314.2,0.1999]
[1757469849264,0.9391,4314.3,4314.2,0.5101]
[1757469849470,0.9391,4314.3,4314.2,0.7177]
[1757469852079,0.9391,4314.3,4314.2,0.4075]
[1757469852572,0.9391,4314.3,4314.2,0.1999]
[1757469854972,0.9391,4314.3,4313.9,0.3102]
[1757469855178,0.9391,4314.3,4313.5,0.1203]
[1757469855179,2.04991137,4314.0,4313.6,0.3102]
[1757469855376,0.7031,4313.7,4313.6,0.5101]
[1757469856072,0.7031,4313.7,4313.6,0.1999]
[1757469856373,0.7031,4313.7,4313.0,0.1226]
[1757469856374,0.7031,4313.7,4313.1,0.3102]
[1757469856576,1.62071137,4313.6,4313.5,0.1999]
[1757469856776,1.92171137,4313.6,4313.5,0.1999]
[1757469857872,1.92171137,4313.6,4313.5,0.5084]
[1757469859874,1.92171137,4313.6,4313.5,1.12716142]
[1757469860176,1.92171137,4313.6,4313.5,0.81866142]
[1757469860380,1.92171137,4313.6,4313.5,1.12716142]
[1757469860679,2.15771137,4313.6,4313.5,1.12716142]
[1757469860875,2.15771137,4313.6,4313.5,0.81866142]
[1757469861080,2.15771137,4313.6,4313.5,0.31544756]
[1757469864079,0.9391,4313.6,4313.5,1.15684756]
[1757469864880,0.9391,4313.6,4313.5,1.03354756]
[1757469866179,0.9391,4313.6,4313.5,0.31544756]
[1757469866383,1.96979338,4313.6,4313.5,0.31544756]
[1757469867482,1.73379338,4313.6,4313.5,0.31544756]
[1757469867882,1.75759338,4313.9,4313.8,0.4096]
[1757469868085,1.99359338,4313.9,4313.8,1.03328528]
[1757469875500,1.99359338,4313.9,4313.8,1.33593483]
[1757469876095,1.99359338,4313.9,4313.8,1.33593425]
[1757469877190,33.7142,4314.2,4314.1,0.4096]
[1757469877391,34.12501931,4314.2,4314.1,1.33593425]
[1757469877591,34.08871931,4314.2,4314.1,1.33593425]
[1757469877789,34.3559,4314.2,4314.1,1.33593425]
[1757469878297,34.85196139,4314.2,4314.1,1.33593425]
[1757469879403,35.88265477,4314.2,4314.1,1.33593425]
[1757469879594,35.88265477,4314.2,4314.1,1.33625104]
[1757469882199,33.393,4314.2,4314.1,1.33625104]
[1757469882408,33.629,4314.2,4314.1,5.33625104]
[1757469884307,34.1499,4314.2,4314.1,5.33625104]
[1757469890198,34.344,4314.2,4314.1,5.33625104]
[1757469894203,33.393,4314.2,4314.1,5.33625104]
[1757469894408,33.629,4314.2,4314.1,5.33625104]
[1757469895812,0.236,4314.2,4314.1,5.33625104]
[1757469896012,0.236,4314.2,4314.1,6.5725784]
[1757469898010,1.03069338,4315.1,4314.1,6.5725784]
[1757469898210,0.4418,4315.0,4314.9,0.1974]
[1757469898412,0.7572,4315.0,4314.9,1.31385104]
[1757469899817,2.10509338,4315.0,4314.9,0.61815104]
[1757469901512,0.0264,4314.2,4314.1,0.2958]
[1757469901717,0.347,4314.2,4314.1,0.2958]
[1757469903111,0.347,4314.2,4314.0,0.1196]
[1757469903318,1.14169338,4314.1,4314.0,0.4154]
[1757469903706,1.14169338,4314.1,4313.5,0.1233]
[1757469903707,0.111,4313.8,4313.5,1.35962736]
[1757469903911,1.14169338,4313.6,4313.5,1.65542736]
[1757469904110,1.11529338,4313.6,4313.5,0.4191]
[1757469904316,0.0423,4313.6,4313.5,0.819]
[1757469904627,1.11529338,4314.2,4314.1,0.6957]
[1757469904928,1.26729338,4314.2,4314.1,0.6957]
[1757469905317,1.26729338,4314.2,4314.1,0.4932]
[1757469905522,1.29369338,4314.2,4314.1,0.2958]
[1757469907120,0.0846,4313.9,4313.8,0.2958]
[1757469907421,1.14169338,4313.9,4313.8,0.2958]
[1757469907617,0.111,4313.9,4313.8,0.2958]
[1757469907819,1.14169338,4313.9,4313.8,0.2958]
[1757469908615,0.0846,4313.7,4313.6,0.2958]
[1757469908816,1.14169338,4313.7,4313.6,0.2958]
[1757469909322,1.11529338,4313.7,4313.6,0.2958]
[1757469911116,1.14169338,4313.7,4313.6,0.2958]
[1757469911516,1.14169338,4313.7,4313.0,1.35962736]
[1757469911517,1.11529338,4313.7,4313.0,1.35962736]
[1757469911718,1.03069338,4313.4,4313.0,1.75952736]
[1757469911923,0.175,4313.3,4313.2,0.3999]
[1757469912119,0.175,4313.3,4313.2,0.6957]
[1757469913519,0.175,4313.3,4313.2,0.99155088]
[1757469918721,0.2596,4313.3,4313.2,0.99155088]
[1757469918925,0.286,4313.3,4313.2,0.59165088]
[1757469919324,0.2596,4313.3,4313.2,0.59165088]
[1757469921330,0.286,4313.3,4313.2,0.59165088]
[1757469921627,0.286,4313.3,4313.2,0.2958]
[1757469921928,0.2596,4313.3,4313.2,0.6946]
[1757469922926,0.2596,4313.3,4313.2,0.2958]
[1757469923128,0.0846,4313.1,4313.0,0.4412]
[1757469923332,1.14169338,4313.1,4313.0,0.4412]
[1757469923533,1.11529338,4313.1,4313.0,0.6439]
[1757469924027,1.11529338,4313.1,4313.0,0.4412]
[1757469924028,1.14169338,4313.1,4313.0,0.4412]
[1757469927222,1.14169338,4313.1,4312.5,0.3179]
[1757469927223,0.111,4312.6,4312.5,0.3179]
[1757469927425,1.37769338,4312.6,4312.0,0.1196]
[1757469927627,0.0846,4312.3,4312.1,0.2926764]
[1757469927827,0.111,4312.3,4312.2,0.3179]
[1757469928433,1.33226628,4312.3,4312.2,0.3179]
[1757469929033,1.30586628,4312.3,4312.2,0.5206]
[1757469929234,1.54186628,4312.3,4312.2,0.7167]
[1757469930531,1.54186628,4312.3,4312.2,0.5206]
[1757469930735,1.56826628,4312.3,4312.2,0.3179]
[1757469931331,1.54186628,4312.3,4312.2,0.3179]
[1757469933439,1.30586628,4312.3,4312.2,0.3179]
[1757469933640,1.54186628,4312.3,4312.2,0.5206]
[1757469934242,1.56826628,4312.3,4312.2,0.3179]
[1757469936137,1.54186628,4312.3,4312.2,0.5206]
[1757469938248,1.54186628,4312.3,4312.2,0.7167]
[1757469942048,1.56826628,4312.3,4312.2,0.3179]
[1757469942856,33.41,4312.4,4312.2,0.7167]
[1757469943153,33.4946,4312.4,4312.3,0.7167]
[1757469943352,33.7306,4312.4,4312.3,0.7167]
[1757469944756,33.7306,4312.4,4312.3,0.5206]
[1757469944952,33.757,4312.4,4312.3,0.5206]
[1757469945148,33.521,4312.4,4312.3,0.5206]
[1757469945349,33.757,4312.4,4312.3,0.5206]
[1757469946258,33.757,4312.4,4312.3,0.3179]
[1757469947358,33.646,4312.4,4312.3,0.7231]
[1757469947950,33.6868,4312.4,4312.3,0.7231]
[1757469948151,33.7276,4312.4,4312.3,0.7231]
[1757469949555,33.7276,4312.4,4312.3,0.3179]
[1757469949556,33.7537,4312.4,4312.3,0.3179]
[1757469950056,33.7276,4312.4,4312.3,0.5194]
[1757469950247,34.25668297,4312.4,4312.3,0.5194]
[1757469950952,34.23058297,4312.4,4312.3,0.5194]
[1757469951152,34.14898297,4312.4,4312.3,0.7219]
[1757469951357,34.19078297,4312.4,4312.3,0.7219]
[1757469952358,34.23258297,4312.4,4312.3,1.01093294]
[1757469952555,34.25868297,4312.4,4312.3,0.28903294]
[1757469952755,0.0836,4312.2,4312.1,0.3118]
[1757469952958,1.56696628,4312.2,4312.1,0.60085409]
[1757469953259,2.07050798,4312.2,4312.1,0.60085409]
[1757469953556,1.56696628,4312.2,4312.1,0.60085409]
[1757469954259,2.07063315,4312.2,4312.1,0.60085409]
[1757469955659,2.04453315,4312.2,4312.1,0.80235409]
[1757469956259,2.04453315,4312.2,4312.1,1.00485409]
[1757469959567,2.07063315,4312.2,4312.1,0.60085409]
[1757469960064,2.04453315,4312.2,4312.1,0.60085409]
[1757469960256,2.04453315,4312.2,4312.1,0.80235409]
[1757469960660,2.07063315,4312.2,4312.1,0.60085409]
[1757469961463,0.0261,4311.7,4311.6,0.3118]
[1757469961664,0.0836,4311.5,4311.4,0.3118]
[1757469961964,0.0836,4311.1,4311.0,0.4329]
[1757469962163,0.3196,4311.1,4311.0,0.8369]
[1757469964064,1.22126628,4311.8,4311.3,0.404]
[1757469964269,0.783067,4311.7,4311.6,0.7158]
[1757469964475,0.824867,4311.7,4311.6,0.7158]
[1757469964771,0.824867,4311.7,4311.6,0.5133]
[1757469965667,0.505267,4311.7,4311.6,0.7158]
[1757469965867,0.741267,4311.7,4311.6,0.7158]
[1757469966367,1.22126628,4312.2,4311.6,0.7158]
[1757469966574,0.78275905,4312.1,4312.0,0.8375]
[1757469966776,0.82455905,4312.1,4312.0,0.8375]
[1757469968277,0.50495905,4312.1,4312.0,0.8375]
[1757469968577,0.74095905,4312.1,4312.0,0.8375]
[1757469970180,0.236,4312.1,4312.0,0.8375]
[1757469970380,0.74096022,4312.1,4312.0,0.8375]
[1757469971186,0.236,4312.1,4312.0,0.8375]
[1757469971584,0.2778,4312.1,4312.0,0.8375]
[1757469974086,0.3196,4312.1,4312.0,0.8375]
[1757469975274,0.2778,4312.1,4312.0,0.8375]
[1757469975987,0.78471557,4312.1,4312.0,0.8375]
[1757469976788,0.78471557,4312.1,4312.0,1.1200769]
[1757469977179,0.74291557,4312.1,4312.0,1.1200769]
[1757469982088,0.82671557,4312.1,4312.0,1.1200769]
[1757469982988,0.59071557,4312.1,4312.0,1.1200769]
[1757469983193,0.82671557,4312.1,4312.0,1.1200769]
[1757469986082,0.3198,4312.1,4312.0,1.1200769]
[1757469988492,1.35116773,4312.1,4312.0,0.9175769]
[1757469988692,1.37666773,4312.1,4312.0,0.3118]
[1757469988899,1.85804957,4312.1,4311.6,0.2917]
[1757469989092,0.0838,4311.8,4311.7,0.48903561]
[1757469989288,1.64755683,4311.8,4311.7,0.28073561]
[1757469989493,1.64755683,4311.8,4311.0,0.3294]
[1757469989494,0.0838,4311.1,4311.0,0.3294]
[1757469989795,1.35116773,4311.1,4311.0,0.6211]
[1757469989988,1.07326773,4311.1,4311.0,0.8227]
[1757469990193,1.26736773,4311.1,4311.0,0.8227]
[1757469991596,0.0255,4312.1,4311.0,0.8227]
[1757469991789,1.03136773,4311.5,4311.0,0.531]
[1757469992099,0.236,4311.4,4311.0,0.531]
[1757469992299,0.236,4311.4,4311.3,0.7016]
[1757469992503,1.35116773,4311.4,4311.3,0.7016]
[1757469992695,1.35116773,4311.4,4311.3,0.5]
[1757469993001,1.88340807,4311.4,4311.3,0.2917]
[1757469996099,1.85790807,4311.4,4311.3,0.5]
[1757469996301,1.85790807,4311.4,4311.3,0.7016]
[1757469996595,1.35116773,4311.4,4311.3,0.7016]
[1757469996795,1.30926773,4311.4,4311.3,0.7016]
[1757469997010,1.26736773,4311.4,4311.3,0.7016]
[1757469998402,1.30926773,4311.4,4311.3,0.7016]
[1757469998594,1.03136773,4311.4,4311.3,0.7016]
[1757469998995,1.26736773,4311.4,4311.3,0.7016]
[1757469999295,0.0838,4312.1,4312.0,0.6261]
[1757469999496,1.85757861,4312.1,4312.0,0.6261]
[1757469999800,1.88307861,4312.1,4312.0,0.4178]
[1757470000594,1.88307861,4312.1,4312.0,0.2917]
[1757470001302,1.88307861,4312.1,4312.0,0.4178]
[1757470003905,0.418,4311.1,4311.0,0.531]
[1757470004102,1.68536773,4311.1,4311.0,0.531]
[1757470005902,1.68536773,4311.1,4311.0,0.8227]
[1757470006905,1.47976773,4311.1,4311.0,0.8227]
[1757470008306,1.26736773,4311.1,4311.0,0.8227]
[1757470008510,33.419,4311.5,4311.4,0.2983]
[1757470008710,33.655,4311.5,4311.4,0.6957]
[1757470009207,33.419,4311.5,4311.4,0.6957]
[1757470009407,33.655,4311.5,4311.4,4.6957]
[1757470011402,33.419,4311.5,4311.4,4.6957]
[1757470011707,33.655,4311.5,4311.4,4.6957]
[1757470017011,0.236,4311.5,4311.4,4.6957]
[1757470019314,1.03136773,4311.9,4311.4,4.3974]
[1757470019521,0.4344,4311.8,4311.7,0.6957]
[1757470020320,0.236,4311.8,4311.7,0.6957]
[1757470020512,34.85806773,4312.6,4312.5,0.817]
[1757470020815,34.88276773,4312.6,4312.5,0.817]
[1757470021312,35.09406773,4312.6,4312.5,0.817]
[1757470021516,35.26116773,4312.6,4312.0,0.1213]
[1757470021820,1.60816773,4312.1,4312.0,0.2983]
[1757470022020,1.84416773,4312.1,4312.0,0.2983]
[1757470023025,1.84416773,4312.1,4312.0,0.4196]
[1757470026620,1.84416773,4312.1,4311.5,0.1213]
[1757470026822,0.4097,4311.2,4311.0,0.1211]
[1757470027021,0.57836283,4312.0,4310.6,1.24101176]
[1757470027022,0.236,4311.1,4310.6,0.2983]
[1757470027224,0.4097,4310.7,4310.6,0.4944]
[1757470028020,0.5768,4310.7,4310.6,0.2983]
[1757470028222,0.5768,4310.4,4310.3,0.2983]
[1757470028526,1.71616773,4310.4,4310.3,0.2983]
[1757470028728,1.71616773,4310.4,4310.1,0.2983]
[1757470028729,0.4097,4310.2,4310.1,0.2983]
[1757470028933,0.4097,4309.7,4309.6,0.6957]
[1757470029128,1.67706773,4309.7,4309.6,0.6957]
[1757470030828,1.46576773,4309.7,4309.6,0.6957]
[1757470031033,1.26736773,4309.7,4309.6,0.6957]
[1757470031224,0.1158,4310.2,4310.1,0.3974]
[1757470031430,0.3518,4310.2,4310.1,0.6957]
[1757470033833,33.414,4311.0,4310.9,0.6957]
[1757470034038,33.8484,4311.0,4310.9,0.6957]
[1757470034336,33.65,4311.0,4310.9,0.6957]
[1757470034743,34.3426,4311.0,4310.9,0.4944]
[1757470035840,0.1886038,4312.1,4310.9,0.4944]
[1757470035841,2.36924548,4313.3,4312.0,0.41741]
[1757470036038,0.2918,4313.3,4312.2,1.03136773]
[1757470036332,0.4194,4313.5,4313.2,1.03136773]
[1757470036638,0.3636,4314.0,4313.3,4.0]
[1757470036639,0.8538,4314.0,4313.3,4.0]
[1757470036837,0.8538,4314.0,4313.6,1.03136773]
[1757470036838,0.4194,4314.0,4313.6,1.03136773]
[1757470037032,0.136,4314.2,4313.9,1.03136773]
[1757470037333,0.3024,4314.2,4314.0,0.61779875]
[1757470037537,0.3024,4314.2,4314.1,0.61737238]
[1757470038135,0.237,4314.3,4314.1,0.61737238]
[1757470038339,0.3024,4314.7,4314.2,4.61737238]
[1757470038536,0.3646,4315.0,4314.3,1.85192783]
[1757470038835,0.3646,4315.0,4314.4,0.61737238]
[1757470038836,0.5784,4315.0,4314.4,0.61737238]
[1757470039040,0.3024,4314.9,4314.5,0.61737238]
[1757470039247,0.1276,4315.0,4314.6,0.61737238]
[1757470039537,0.1276,4315.0,4314.7,0.61737238]
[1757470039739,0.1276,4315.0,4314.8,0.61737238]
[1757470039930,0.1276,4315.0,4314.9,0.61737238]
[1757470040639,0.3024,4315.0,4314.9,0.61737238]
[1757470041738,0.3024,4315.0,4314.9,0.31720483]
[1757470041940,0.4292,4315.0,4314.9,0.62619093]
[1757470045847,0.643,4315.0,4314.9,0.62619093]
[1757470046841,0.1268,4316.5,4314.9,4.0]
[1757470047044,0.236,4315.4,4314.8,0.41713]
[1757470047745,0.236,4315.4,4314.6,0.41715]
[1757470047947,33.85,4315.5,4314.9,0.41712]
[1757470048135,33.85,4315.5,4315.0,0.31416906]
[1757470048335,33.85,4315.5,4314.9,0.41712]
[1757470048336,0.3024,4315.4,4314.9,0.41712]
[1757470048646,33.85,4315.5,4314.6,0.41715]
[1757470048947,34.0638,4315.5,4314.7,0.62155716]
[1757470049245,34.0638,4315.5,4314.8,0.31403704]
[1757470049448,34.0638,4315.5,4314.9,0.31403704]
[1757470049647,0.3024,4315.4,4314.6,0.41715]
[1757470049848,0.3024,4315.4,4314.7,1.0384981]
[1757470050048,0.3024,4315.4,4314.8,0.31393587]
[1757470050346,0.3024,4315.3,4314.9,0.31393587]
[1757470050548,0.5162,4315.3,4314.6,0.41716]
[1757470050850,0.5162,4315.3,4314.7,1.03847884]
[1757470051043,33.5476,4315.5,4314.8,0.73105114]
[1757470051341,0.3024,4315.3,4314.9,0.31392114]
[1757470051547,0.2138,4315.3,4314.8,0.41713]
[1757470051736,33.7614,4315.5,4314.9,0.31382024]
[1757470051939,0.2138,4315.4,4314.5,0.41716]
[1757470052145,0.5162,4315.3,4314.6,0.6211507]
[1757470052343,33.7614,4315.5,4314.7,1.0381826]
[1757470052544,0.2138,4315.4,4314.8,0.73091516]
[1757470052747,0.2138,4315.4,4314.8,0.41714]
[1757470053052,33.7614,4315.5,4314.8,0.41714]
[1757470053352,0.2138,4315.4,4314.8,0.41714]
[1757470053540,33.5476,4315.5,4314.8,0.41714]
[1757470053747,0.5162,4315.4,4314.8,0.41714]
[1757470053946,33.5476,4315.5,4314.8,0.41714]
[1757470054247,0.3024,4315.4,4314.8,0.41714]
[1757470054551,33.5476,4315.5,4314.8,0.41714]
[1757470054748,0.3024,4315.4,4314.8,0.41714]
[1757470054944,0.3024,4315.3,4314.8,0.41714]
[1757470055151,0.2138,4315.3,4314.8,0.41714]
[1757470055346,0.3024,4315.1,4314.6,0.41715]